bitfinex-derivatives/quotes_SOLF0:USTF0_20250404
["timestamp","ask_amount","ask_price","bid_price","bid_amount"]
[1743770209075,8.6791,115.24,115.23,4.672e-05]
[1743770209482,59.53942119,115.24,115.23,4.672e-05]
[1743770209674,8.6833,115.19,115.16,709.7897831]
[1743770209875,363.10032119,115.22,115.16,709.7897831]
[1743770210077,50.86032119,115.18,115.16,312.30899839]
[1743770210277,8.6843,115.17,115.16,312.30899839]
[1743770212574,59.54462119,115.17,115.16,312.30899839]
[1743770213476,123.40493005,115.17,115.16,312.30899839]
[1743770213683,297.81966005,115.17,115.07,172.4742595]
[1743770213881,50.86032119,115.12,115.07,172.4742595]
[1743770214082,8.6901,115.1,115.07,172.4742595]
[1743770214282,60.3,115.11,115.07,172.4742595]
[1743770214681,0.06586616,115.1,115.08,0.06649147]
[1743770214881,0.06586616,115.1,115.09,1.73777044]
[1743770215083,8.75546616,115.1,115.09,1.73777044]
[1743770216287,8.6904,115.09,115.08,0.06649147]
[1743770216880,8.6904,115.09,115.08,9.147e-05]
[1743770217089,8.6904,115.09,115.0,763.9259151]
[1743770217090,8.68,115.09,115.0,763.9259151]
[1743770217285,50.86032119,115.08,115.0,772.6225151]
[1743770217491,8.6913,115.08,115.01,60.12]
[1743770217784,220.62247921,115.1,115.01,60.12]
[1743770218086,8.693,115.06,115.01,60.12]
[1743770218286,8.693,115.06,115.04,0.05535755]
[1743770218687,8.6934,115.05,115.04,0.05535755]
[1743770220288,8.75480073,115.06,115.04,0.05535755]
[1743770220488,110.76212192,115.06,115.04,5.755e-05]
[1743770220786,8.6964,115.01,115.0,763.9259151]
[1743770221088,68.5164,115.01,115.0,355.43298367]
[1743770221278,68.5164,115.01,115.0,355.40828367]
[1743770221790,59.82,115.01,114.91,13.458]
[1743770222087,59.82,115.01,114.99,2.913e-05]
[1743770222283,59.82,115.01,114.91,13.458]
[1743770222679,8.7032,114.92,114.91,13.458]
[1743770222884,59.54,114.95,114.84,1076.5659151]
[1743770223085,1638.62279195,114.93,114.9,0.05532728]
[1743770223384,8.704,114.91,114.9,0.05532728]
[1743770223591,68.064,114.91,114.9,0.05532728]
[1743770223785,68.064,114.91,114.9,2.728e-05]
[1743770224088,59.36,114.91,114.79,62.0]
[1743770224299,50.86032119,114.88,114.81,4.7039]
[1743770224488,59.34,114.87,114.81,4.7039]
[1743770224684,59.34,114.87,114.8,9.3075]
[1743770224890,59.34,114.87,114.78,50.86032119]
[1743770225086,50.86032119,114.8,114.68,312.78]
[1743770225293,50.86032119,114.8,114.69,50.86032119]
[1743770225793,59.7,114.81,114.73,0.0566812]
[1743770225989,0.06466983,114.76,114.73,0.0566812]
[1743770226196,0.06466983,114.76,114.68,312.78]
[1743770226498,805.08994503,114.76,114.73,0.0566812]
[1743770226703,805.0252752,114.76,114.75,8.7161]
[1743770226895,519.7872752,114.76,114.75,372.59642119]
[1743770227192,500.4030752,114.76,114.75,8.7161]
[1743770227996,500.4030752,114.76,114.75,17.4361]
[1743770228200,0.0635134,114.77,114.76,8.7154]
[1743770228397,0.0635134,114.77,114.73,0.0566812]
[1743770228592,0.0635134,114.77,114.72,423.86032119]
[1743770228795,0.0635134,114.77,114.74,50.91700239]
[1743770229300,0.0635134,114.77,114.74,59.63700239]
[1743770229598,64.0457,114.88,114.76,50.86032119]
[1743770229798,64.0457,114.88,114.79,8.7128]
[1743770229999,50.86032119,114.87,114.75,50.86032119]
[1743770230498,64.0457,114.88,114.77,50.86032119]
[1743770230696,0.05646078,114.82,114.77,50.86032119]
[1743770230899,0.05646078,114.82,114.8,0.06077107]
[1743770231292,50.86032119,114.85,114.74,59.76]
[1743770231495,50.86032119,114.83,114.74,59.76]
[1743770231703,0.05779982,114.82,114.8,0.06312326]
[1743770231896,110.66032119,114.83,114.75,8.716]
[1743770232098,8.7131,114.79,114.74,59.76]
[1743770232303,0.06415939,114.82,114.72,372.68]
[1743770232495,110.66032119,114.83,114.75,0.06613612]
[1743770232697,0.05485556,114.78,114.75,50.92645731]
[1743770232897,5.556e-05,114.78,114.77,50.86032119]
[1743770233099,8.7079,114.86,114.77,110.42032119]
[1743770233402,4.5514,114.89,114.81,50.86032119]
[1743770233602,8.7041,114.91,114.86,8.7072]
[1743770233803,825.17777059,114.93,114.86,59.44]
[1743770234399,0.05935369,114.91,114.88,0.06032188]
[1743770235698,1.79984624,114.91,114.89,59.12]
[1743770235894,1.7343878,114.91,114.89,59.12]
[1743770236100,1.7343878,114.91,114.88,0.06032188]
[1743770236298,10.4389878,114.91,114.88,0.06032188]
[1743770236504,1.7343878,114.91,114.88,0.06032188]
[1743770237204,1.80116673,114.91,114.88,0.06032188]
[1743770237801,1.80116673,114.91,114.89,59.0]
[1743770238007,825.17777059,114.93,114.89,59.0]
[1743770238201,825.17777059,114.93,114.9,8.7046]
[1743770238506,50.86032119,114.96,114.89,290.60834537]
[1743770238703,50.86032119,114.91,114.89,2.16494537]
[1743770238908,50.86032119,114.93,114.89,2.16494537]
[1743770239304,50.86032119,114.91,114.9,0.06432689]
[1743770239505,109.64032119,114.91,114.87,289.51043171]
[1743770239802,50.86032119,114.89,114.87,254.82153171]
[1743770240001,50.86032119,114.89,114.77,372.18]
[1743770240307,8.7099,114.84,114.77,372.18]
[1743770240508,109.78032119,114.87,114.77,372.18]
[1743770240704,0.05749292,114.82,114.79,0.06436728]
[1743770241005,50.86032119,114.89,114.85,8.7081]
[1743770241306,50.86032119,114.89,114.81,58.82]
[1743770241510,58.82,114.92,114.81,58.82]
[1743770241511,50.86032119,114.91,114.81,58.82]
[1743770241696,8.7056,114.89,114.81,58.82]
[1743770241902,50.86032119,114.94,114.83,50.86032119]
[1743770242200,50.86032119,114.94,114.84,4.7807]
[1743770242396,50.86032119,114.92,114.84,13.4896]
[1743770242597,50.86032119,114.88,114.8,317.9496]
[1743770242801,50.86032119,114.86,114.78,4.5081]
[1743770243000,109.72032119,114.86,114.8,8.7123]
[1743770243200,0.05757744,114.83,114.81,0.06585652]
[1743770243804,0.05757744,114.83,114.81,5.652e-05]
[1743770244008,50.86032119,114.9,114.81,58.70005652]
[1743770244408,50.86032119,114.9,114.81,58.7]
[1743770244607,50.86032119,114.92,114.83,50.86032119]
[1743770244808,50.86032119,114.94,114.85,50.86032119]
[1743770245012,50.86032119,114.92,114.85,58.6]
[1743770245212,0.05853288,114.91,114.88,0.06332396]
[1743770245711,50.86032119,114.9,114.88,0.06332396]
[1743770245909,0.05853288,114.91,114.88,0.06332396]
[1743770246512,8.76293288,114.91,114.88,0.06332396]
[1743770246707,0.05853288,114.91,114.88,0.06332396]
[1743770247310,0.05853288,114.91,114.88,8.76932396]
[1743770247505,0.05853288,114.91,114.88,58.58332396]
[1743770248109,0.05853288,114.91,114.88,0.06332396]
[1743770248310,50.91885407,114.91,114.88,0.06332396]
[1743770248514,0.05853288,114.91,114.88,0.06332396]
[1743770249109,8.7055,114.89,114.88,0.06332396]
[1743770249319,59.56582119,114.89,114.88,2.396e-05]
[1743770249513,50.86032119,114.9,114.82,4.7807]
[1743770249906,50.86032119,114.92,114.83,58.2]
[1743770250416,50.86032119,114.9,114.84,4.3372]
[1743770250713,8.707,114.87,114.86,0.05630924]
[1743770251110,0.06216639,114.89,114.86,0.05630924]
[1743770251614,0.06216639,114.89,114.87,58.08]
[1743770251811,8.7021,114.94,114.87,58.08]
[1743770252117,50.86032119,114.97,114.87,108.94032119]
[1743770252413,50.86032119,114.95,114.87,58.08]
[1743770252614,50.86032119,114.95,114.84,375.7972]
[1743770252911,55.21412119,114.99,114.92,8.7027]
[1743770253111,55.21412119,114.99,114.89,108.92032119]
[1743770253112,50.86032119,114.99,114.89,108.92032119]
[1743770253315,0.06139344,114.97,114.91,50.86032119]
[1743770253516,50.86032119,115.03,114.93,50.92058757]
[1743770253717,4.5225,115.04,114.94,57.98]
[1743770254012,50.86032119,115.01,114.94,57.98]
[1743770254213,52.5993004,115.01,114.94,57.98]
[1743770254515,50.86032119,114.99,114.9,8.8383]
[1743770254714,0.05621922,114.99,114.96,0.06292635]
[1743770254916,52.5993004,115.01,114.93,57.8]
[1743770255114,52.5993004,115.01,114.96,0.06437092]
[1743770255318,8.6995,114.97,114.96,0.06437092]
[1743770255511,50.86032119,114.97,114.9,66.5583]
[1743770255713,50.86032119,114.99,114.9,66.5583]
[1743770256015,52.5993004,115.01,114.94,8.7013]
[1743770256215,1.73897921,115.01,114.94,66.3413]
[1743770256516,1.73897921,115.01,114.94,57.64]
[1743770256716,0.05620607,114.99,114.96,0.05522256]
[1743770259218,8.6994,114.97,114.96,0.05522256]
[1743770259818,50.86032119,114.98,114.88,57.22]
[1743770260122,50.86032119,114.98,114.92,8.7031]
[1743770260321,50.86032119,115.0,114.89,55.53092119]
[1743770260621,108.12032119,115.02,114.95,8.7005]
[1743770260919,0.06172996,115.0,114.97,0.06615485]
[1743770261120,0.06172996,115.0,114.97,8.6991]
[1743770261324,0.06172996,115.0,114.97,0.06228093]
[1743770262215,0.06172996,115.0,114.99,8.6979]
[1743770262420,313.28,115.08,114.98,57.18]
[1743770262421,55.28212119,115.08,114.98,57.18]
[1743770262618,57.02004263,115.08,114.98,66.1458]
[1743770262827,8.6952,115.03,114.98,66.1458]
[1743770263321,8.6939,115.05,114.98,66.1458]
[1743770263615,61.5618,115.08,114.99,50.92560613]
[1743770263817,4.4218,115.08,114.99,50.86032119]
[1743770264020,50.86032119,115.06,114.98,66.1458]
[1743770264213,50.86032119,115.06,114.98,74.8439]
[1743770264411,8.6967,115.01,114.96,61.6306]
[1743770264812,0.05836748,115.0,114.97,0.0599496]
[1743770265015,0.05836748,115.0,114.96,61.6306]
[1743770265222,0.05836748,115.0,114.97,0.05832224]
[1743770265619,50.91868867,115.0,114.97,0.05832224]
[1743770266117,8.6987,114.98,114.97,0.05832224]
[1743770266513,59.55902119,114.98,114.97,0.05832224]
[1743770266718,8.701,114.95,114.92,13.0363]
[1743770267024,50.86032119,114.98,114.92,4.3335]
[1743770267325,8.7004,114.96,114.92,4.3335]
[1743770267625,59.55942119,114.98,114.94,8.7016]
[1743770267820,0.06616555,114.95,114.94,8.7016]
[1743770268422,4.4846,115.01,114.94,56.34]
[1743770268719,8.6973,115.0,114.94,56.34]
[1743770268921,4.4846,115.01,114.96,8.6997]
[1743770269124,4.4846,115.01,114.94,56.34]
[1743770269326,8.6995,114.97,114.94,56.34]
[1743770269622,0.06081816,114.97,114.94,65.09999906]
[1743770269819,0.06081816,114.97,114.94,56.39859906]
[1743770270415,0.06081816,114.97,114.94,0.05859906]
[1743770271226,50.86032119,114.96,114.87,4.6365]
[1743770271422,50.86032119,114.96,114.89,8.705]
[1743770271827,50.86032119,114.96,114.9,8.7044]
[1743770272022,8.7036,114.92,114.87,60.5765]
[1743770272220,50.86032119,114.96,114.87,60.5765]
[1743770272422,0.06162379,114.91,114.89,0.06469663]
[1743770272624,0.06162379,114.91,114.89,8.76989663]
[1743770272822,50.86032119,114.96,114.87,60.5765]
[1743770273026,0.06609515,114.91,114.89,0.05921689]
[1743770273226,4.5343,114.93,114.87,8.7067]
[1743770273418,0.06327531,114.91,114.89,0.06297838]
[1743770274118,50.86032119,114.9,114.83,4.62]
[1743770274323,50.86032119,114.88,114.81,55.5]
[1743770274527,50.86032119,114.86,114.78,4.4443]
[1743770275036,115.40192119,114.88,114.78,4.4443]
[1743770275233,50.86032119,114.86,114.78,4.4443]
[1743770275532,0.05474631,114.83,114.81,0.06481402]
[1743770276027,8.76524631,114.83,114.81,0.06481402]
[1743770276522,8.76494631,114.83,114.81,0.06481402]
[1743770276719,0.05474631,114.83,114.81,0.06481402]
[1743770277028,50.86032119,114.82,114.73,4.4443]
[1743770277233,50.86032119,114.8,114.73,4.4443]
[1743770277432,8.7119,114.81,114.77,8.7141]
[1743770277629,55.24,114.84,114.75,55.28]
[1743770277923,50.86032119,114.86,114.75,106.14032119]
[1743770278128,0.06239643,114.81,114.78,0.05722662]
[1743770278421,50.86032119,114.84,114.75,106.14032119]
[1743770278627,0.06400198,114.81,114.8,8.7119]
[1743770279020,50.86032119,114.86,114.75,106.14032119]
[1743770279217,0.05846976,114.82,114.79,0.06017201]
[1743770279627,0.05846976,114.82,114.75,55.28]
[1743770279821,105.94032119,114.84,114.79,0.05611351]
[1743770280224,0.05959618,114.81,114.8,8.7123]
[1743770280426,9.0416,114.88,114.8,50.86032119]
[1743770280728,50.86032119,114.89,114.8,4.4769]
[1743770280930,50.86032119,114.87,114.78,55.2]
[1743770281119,55.2,114.88,114.79,50.86032119]
[1743770281428,50.86032119,114.87,114.78,55.2]
[1743770281628,0.06212236,114.85,114.82,0.06503393]
[1743770282031,50.92244355,114.85,114.82,0.06503393]
[1743770282420,50.86032119,114.83,114.73,59.6243]
[1743770282621,50.86032119,114.81,114.73,4.4443]
[1743770282824,8.7134,114.79,114.75,8.716]
[1743770283025,50.86032119,114.83,114.71,110.51722119]
[1743770283326,50.86032119,114.83,114.73,50.86032119]
[1743770283523,55.18,114.84,114.73,50.86032119]
[1743770283727,0.05614889,114.78,114.76,0.06620961]
[1743770283930,55.18,114.84,114.77,50.86032119]
[1743770284129,59.4776,114.87,114.78,4.7214]
[1743770284325,368.24,114.9,114.79,105.88032119]
[1743770284530,4.4185,114.89,114.79,105.88032119]
[1743770284727,50.86032119,114.87,114.78,4.7214]
[1743770285025,8.7106,114.83,114.79,8.7126]
[1743770285231,0.06182852,114.84,114.81,0.0595127]
[1743770285535,8.7142,114.78,114.74,8.7162]
[1743770285839,8.7142,114.78,114.71,55.58172119]
[1743770286129,50.86032119,114.79,114.71,4.7214]
[1743770286521,50.86032119,114.79,114.72,8.718]
[1743770286727,0.06424877,114.76,114.74,0.06211745]
[1743770286931,54.82424877,114.76,114.74,0.06211745]
[1743770287230,63.54004877,114.76,114.74,0.06211745]
[1743770287536,54.82424877,114.76,114.74,0.06211745]
[1743770288034,0.06424877,114.76,114.74,0.06211745]
[1743770288230,0.06424877,114.76,114.74,1.80518874]
[1743770288827,105.38032119,114.75,114.74,1.80518874]
[1743770289026,110.01112119,114.75,114.74,1.80518874]
[1743770289221,110.01112119,114.75,114.66,4.5565]
[1743770289433,50.86032119,114.72,114.62,71.19241838]
[1743770289630,54.48,114.71,114.62,71.19241838]
[1743770289830,54.48,114.71,114.62,122.05273957]
[1743770290034,54.48,114.71,114.64,50.86032119]
[1743770290233,0.05945245,114.69,114.66,0.06225072]
[1743770291329,50.86032119,114.68,114.66,0.06225072]
[1743770292330,0.05945245,114.69,114.66,0.06225072]
[1743770292534,8.78055245,114.69,114.66,0.06225072]
[1743770292736,0.05945245,114.69,114.66,0.06225072]
[1743770292932,8.7215,114.68,114.66,0.06225072]
[1743770293238,50.86032119,114.68,114.54,314.97776174]
[1743770293431,50.86032119,114.65,114.56,4.4015]
[1743770293740,50.86032119,114.63,114.56,4.4015]
[1743770294233,50.86032119,114.63,114.52,346.58265016]
[1743770294234,50.86032119,114.61,114.52,295.72232897]
[1743770294439,50.86032119,114.61,114.58,0.0650814]
[1743770294440,50.86032119,114.59,114.58,0.0650814]
[1743770294738,50.86032119,114.59,114.53,237.55808197]
[1743770295034,50.86032119,114.59,114.52,295.72232897]
[1743770295035,50.86032119,114.55,114.46,241.95958197]
[1743770295340,50.86032119,114.49,114.46,237.55808197]
[1743770295539,54.64,114.5,114.46,237.55808197]
[1743770295729,54.64,114.5,114.46,237.58248362]
[1743770295926,50.86032119,114.47,114.46,237.58248362]
[1743770296335,59.60032119,114.47,114.44,347.41251806]
[1743770296535,105.80032119,114.46,114.44,347.41251806]
[1743770296734,114.53902119,114.46,114.44,342.00381806]
[1743770296930,114.54032119,114.46,114.43,347.41251806]
[1743770297134,50.86032119,114.44,114.43,347.41251806]
[1743770297338,59.60002119,114.44,114.43,347.41251806]
[1743770297535,50.86032119,114.44,114.43,347.41251806]
[1743770297933,0.05875149,114.45,114.43,347.41251806]
[1743770298335,0.05875149,114.45,114.43,356.15281806]
[1743770298533,0.05875149,114.45,114.43,347.41251806]
[1743770298833,54.8,114.49,114.43,347.41251806]
[1743770299140,54.8,114.49,114.4,55.0]
[1743770299141,50.86032119,114.48,114.4,55.0]
[1743770299333,50.86032119,114.48,114.42,4.7998]
[1743770300037,50.91903578,114.46,114.44,0.05827126]
[1743770300239,55.6,114.45,114.44,0.05827126]
[1743770300537,55.6,114.45,114.44,0.05875149]
[1743770301441,106.46032119,114.45,114.38,4.7998]
[1743770301630,59.60172119,114.42,114.38,8.7443]
[1743770301837,56.1,114.41,114.33,4.6478]
[1743770302036,50.86032119,114.38,114.27,106.94032119]
[1743770302241,50.86032119,114.34,114.28,9.01]
[1743770302440,106.88032119,114.34,114.28,9.01]
[1743770302642,0.06039624,114.32,114.28,9.01]
[1743770303035,50.92071743,114.32,114.21,1.52234301]
[1743770303341,106.88032119,114.34,114.22,59.87032119]
[1743770303541,50.86032119,114.36,114.3,8.7504]
[1743770303735,50.86032119,114.36,114.26,55.78]
[1743770303936,0.06587054,114.29,114.28,8.752]
[1743770304233,0.06629567,114.33,114.26,55.78]
[1743770304439,11.61758069,114.29,114.28,8.752]
[1743770304642,8.069e-05,114.29,114.28,8.752]
[1743770304841,139.41096828,114.33,114.28,59.62032119]
[1743770305037,126.07306828,114.33,114.3,50.86032119]
[1743770305246,126.07306828,114.33,114.32,8.7489]
[1743770305247,42.60617728,114.33,114.32,8.7489]
[1743770305636,50.86032119,114.4,114.32,8.7489]
[1743770305843,50.86032119,114.36,114.25,4.4123]
[1743770306038,50.86032119,114.32,114.21,50.86032119]
[1743770306238,56.18,114.31,114.28,0.05743159]
[1743770306636,318.9965,114.35,114.25,50.86032119]
[1743770306840,0.06382757,114.31,114.28,0.05726694]
[1743770307238,0.06382757,114.31,114.25,50.86032119]
[1743770307441,0.06382757,114.31,114.28,0.05743159]
[1743770307944,291.47181381,114.41,114.29,50.86032119]
[1743770308138,235.27181381,114.41,114.31,50.86032119]
[1743770308539,2.9202,114.41,114.32,62.0]
[1743770308733,11.6628,114.41,114.37,8.7446]
[1743770308939,2.9202,114.41,114.34,56.16]
[1743770309137,0.05731266,114.4,114.38,0.061665]
[1743770310146,50.91763385,114.4,114.38,0.061665]
[1743770310448,8.7435,114.39,114.38,0.061665]
[1743770310745,50.91763385,114.4,114.32,56.36]
[1743770310945,8.7447,114.38,114.34,8.7471]
[1743770311146,50.86032119,114.4,114.3,365.38032119]
[1743770311337,50.86032119,114.41,114.31,58.04680043]
[1743770311540,50.86032119,114.41,114.31,56.44]
[1743770311541,50.86032119,114.39,114.31,56.44]
[1743770311936,0.06676601,114.36,114.28,56.52]
[1743770312140,50.86032119,114.33,114.21,112.86032119]
[1743770312344,50.86032119,114.33,114.23,50.86032119]
[1743770312546,8.75,114.31,114.24,1.60767344]
[1743770312850,107.38032119,114.35,114.24,1.60767344]
[1743770313053,65.2669,114.35,114.31,8.7492]
[1743770313348,8.7596,114.36,114.31,8.7492]
[1743770313549,0.06414016,114.34,114.33,8.7481]
[1743770313749,0.06414016,114.34,114.28,56.42]
[1743770314047,0.05760872,114.35,114.29,108.98739035]
[1743770314253,4.475,114.37,114.3,1.60706916]
[1743770314455,0.05554638,114.33,114.3,1.60706916]
[1743770314754,370.09052119,114.41,114.3,52.46739035]
[1743770314950,9.0473,114.4,114.3,50.86032119]
[1743770315252,9.0473,114.4,114.31,1.60688442]
[1743770315448,59.90762119,114.4,114.31,1.60688442]
[1743770315643,9.0473,114.4,114.37,8.7446]
[1743770315847,9.0473,114.4,114.34,56.44]
[1743770316053,0.06320584,114.37,114.34,56.49665404]
[1743770316353,0.06320584,114.37,114.36,8.7458]
[1743770316647,56.5,114.43,114.34,56.49665404]
[1743770316648,365.50032119,114.46,114.34,107.35697523]
[1743770316851,8.741,114.43,114.36,50.86032119]
[1743770317150,118.94136293,114.45,114.35,112.86032119]
[1743770317352,114.20236293,114.45,114.36,1.6060738]
[1743770317653,114.20236293,114.45,114.37,50.86032119]
[1743770317852,0.06095188,114.42,114.39,0.06551782]
[1743770318049,0.06095188,114.42,114.39,50.92583901]
[1743770318243,0.06095188,114.42,114.39,52.53170277]
[1743770318450,109.48526293,114.45,114.4,1.60586376]
[1743770318652,109.48526293,114.45,114.4,50.86032119]
[1743770318950,69.15741727,114.45,114.44,8.7397]
[1743770319254,69.15741727,114.45,114.4,50.86032119]
[1743770319453,69.15741727,114.45,114.41,58.0053647]
[1743770319647,69.15741727,114.45,114.41,56.46210321]
[1743770319848,0.05995686,114.44,114.41,0.06210321]
[1743770320051,0.05995686,114.44,114.41,1.66744191]
[1743770320850,5.686e-05,114.44,114.43,50.86032119]
[1743770321158,35.90757413,114.45,114.43,52.46549692]
[1743770321357,7.413e-05,114.45,114.44,57.94517573]
[1743770321553,7.413e-05,114.45,114.44,66.68487573]
[1743770321758,7.413e-05,114.45,114.44,73.8197]
[1743770321960,7.413e-05,114.45,114.44,137.42470792]
[1743770322460,2.662e-05,114.46,114.45,8.739]
[1743770322662,323.501,114.56,114.45,52.46532911]
[1743770322862,374.36132119,114.56,114.48,8.7366]
[1743770323054,50.86032119,114.54,114.44,56.34]
[1743770323360,50.86032119,114.52,114.44,56.34]
[1743770323863,0.05830556,114.49,114.47,0.05796445]
[1743770324961,8.7367,114.48,114.47,0.05796445]
[1743770325366,0.05830556,114.49,114.41,56.26]
[1743770325553,9.36260556,114.49,114.42,1.60520906]
[1743770325754,9.3043,114.49,114.42,1.60520906]
[1743770326266,9.3043,114.49,114.45,8.7389]
[1743770326464,0.05539005,114.47,114.44,0.05712864]
[1743770327759,0.05539005,114.47,114.46,59.59852119]
[1743770327760,9.005e-05,114.47,114.46,59.59852119]
[1743770327963,9.005e-05,114.47,114.46,117.18369867]
[1743770328266,9.005e-05,114.47,114.46,125.92369867]
[1743770328473,9.005e-05,114.47,114.46,115.57852119]
[1743770328761,9.005e-05,114.47,114.46,64.7182]
[1743770329166,9.005e-05,114.47,114.44,0.05712864]
[1743770329767,9.005e-05,114.47,114.46,8.7382]
[1743770329963,9.005e-05,114.47,114.46,10.3431695]
[1743770330272,8.9113,114.55,114.51,8.7338]
[1743770330567,8.9113,114.55,114.48,106.70032119]
[1743770330761,8.9113,114.55,114.48,55.84]
[1743770330961,8.9113,114.55,114.48,106.70032119]
[1743770331160,4.4982,114.55,114.5,50.86032119]
[1743770331362,4.4982,114.55,114.48,106.70032119]
[1743770331562,0.06715153,114.54,114.51,0.05641464]
[1743770331767,8.7336,114.52,114.51,0.05641464]
[1743770332878,64.26,114.52,114.36,231.79999235]
[1743770333167,50.86032119,114.49,114.39,50.86032119]
[1743770333374,4.7698,114.48,114.42,8.7407]
[1743770333574,55.5,114.47,114.42,8.7407]
[1743770333775,4.7698,114.48,114.41,50.86032119]
[1743770333972,0.06198259,114.46,114.43,8.79884181]
[1743770334772,0.06198259,114.46,114.43,0.05874181]
[1743770334976,0.06198259,114.46,114.44,55.42]
[1743770335173,0.01728259,114.46,114.44,55.42]
[1743770335481,0.01728259,114.46,114.45,59.59932119]
[1743770335687,119.93332119,114.56,114.45,52.46527705]
[1743770335877,50.86032119,114.54,114.44,55.42]
[1743770336079,50.86032119,114.5,114.41,55.34]
[1743770336382,106.18032119,114.52,114.45,8.7385]
[1743770336576,106.18032119,114.52,114.41,106.20032119]
[1743770336877,0.06061402,114.48,114.46,8.7378]
[1743770337076,0.06061402,114.48,114.44,55.24]
[1743770337273,50.86032119,114.52,114.46,0.06263286]
[1743770337474,0.06560347,114.47,114.46,0.06263286]
[1743770337672,50.86032119,114.52,114.46,0.06263286]
[1743770337873,0.06287785,114.48,114.46,0.06263286]
[1743770338076,50.92319904,114.48,114.4,55.18]
[1743770338268,50.86032119,114.48,114.38,318.7146]
[1743770338474,8.7393,114.45,114.42,8.7408]
[1743770339180,8.7405,114.43,114.4,8.7424]
[1743770339480,50.86032119,114.44,114.35,54.94]
[1743770339674,50.86032119,114.44,114.36,1.60600503]
[1743770340082,4.3226,114.43,114.33,231.79999235]
[1743770340280,4.3226,114.43,114.34,1.60621206]
[1743770340476,4.3226,114.43,114.37,0.06587112]
[1743770340682,0.05545063,114.4,114.37,0.06587112]
[1743770341477,8.7443,114.38,114.37,0.06587112]
[1743770341682,0.05545063,114.4,114.37,0.06587112]
[1743770342682,0.05545063,114.4,114.38,8.7439]
[1743770342875,0.05545063,114.4,114.37,0.06587112]
[1743770343180,105.62032119,114.48,114.38,54.76]
[1743770343383,15.62438266,114.47,114.38,54.76]
[1743770343684,8.7417,114.42,114.38,54.76]
[1743770343883,50.86032119,114.46,114.38,54.76]
[1743770344084,50.86032119,114.44,114.33,282.66031354]
[1743770344286,8.7428,114.4,114.39,62.0]
[1743770344582,54.74,114.43,114.39,62.0]
[1743770344785,50.86032119,114.4,114.33,231.79999235]
[1743770344975,0.05885922,114.41,114.4,0.05676387]
[1743770345175,50.86032119,114.45,114.4,0.05676387]
[1743770345386,0.06494442,114.42,114.39,0.05966247]
[1743770345885,0.06494442,114.42,114.41,8.7415]
[1743770346485,50.86032119,114.51,114.41,59.60032119]
[1743770346687,1.74657235,114.51,114.42,54.46]
[1743770347287,52.60689354,114.51,114.42,54.46]
[1743770347477,8.7385,114.46,114.43,8.7401]
[1743770347685,0.06340444,114.48,114.45,0.06236144]
[1743770347981,0.06444371,114.48,114.47,8.7371]
[1743770348583,4.371e-05,114.48,114.47,8.7371]
[1743770348884,4.371e-05,114.48,114.46,63.0179]
[1743770349187,4.371e-05,114.48,114.47,62.0]
[1743770350087,4.371e-05,114.48,114.47,70.7374]
[1743770350586,4.371e-05,114.48,114.47,124.8574]
[1743770351887,4.371e-05,114.48,114.47,70.7374]
[1743770352091,4.371e-05,114.48,114.47,8.7374]
[1743770352985,4.371e-05,114.48,114.46,8.7378]
[1743770353191,8.73714371,114.48,114.45,54.14236144]
[1743770353379,4.371e-05,114.48,114.45,54.14236144]
[1743770353583,4.371e-05,114.48,114.45,105.00268263]
[1743770354084,4.371e-05,114.48,114.47,8.7374]
[1743770354291,6.86e-05,114.5,114.47,50.86032119]
[1743770354484,6.86e-05,114.5,114.49,59.59622119]
[1743770354689,50.86032119,114.62,114.49,104.82032119]
[1743770354884,4.5577,114.6,114.54,50.86032119]
[1743770355082,60.01122119,114.64,114.55,115.96]
[1743770355298,4.5577,114.63,114.56,50.86032119]
[1743770355494,4.5577,114.63,114.58,0.06080838]
[1743770355795,8.78420664,114.61,114.59,53.94]
[1743770355988,8.78420664,114.61,114.58,8.78950838]
[1743770356180,0.05740664,114.61,114.56,53.94]
[1743770356378,0.05740664,114.61,114.58,0.06550728]
[1743770356982,0.05740664,114.61,114.6,8.7275]
[1743770357180,4.7492,114.64,114.58,50.92582847]
[1743770357385,8.7261,114.62,114.59,8.7281]
[1743770357792,104.70032119,114.64,114.53,365.26032119]
[1743770357990,50.86032119,114.6,114.54,8.7317]
[1743770358192,4.7684,114.59,114.54,8.7317]
[1743770358387,4.7684,114.59,114.53,53.82]
[1743770358388,0.06228322,114.58,114.56,0.06356029]